fUSD/lending_fUSD_20260405
["ID","MTS","AMOUNT","RATE_DAILY","PERIOD"]
[419834111,1775406639219,-151.0,0.00011985,2]
[419834112,1775406639228,-6869.85133455,0.00012119,2]
[419834113,1775406639238,-500.0,0.00012219,2]
[419834114,1775406639247,-751.14,0.00012255,2]
[419834115,1775406639257,-160.0,0.00012255,2]
[419834116,1775406639267,-155.72826666,0.00012302,2]
[419834117,1775406639276,-500.0,0.00012438,2]
[419834118,1775406639286,-200.0,0.00012529,2]
[419834119,1775406639296,-751.14,0.00012529,2]
[419834120,1775406639305,-6869.8513345,0.00012659,2]
[419834121,1775406639315,-9473.63643207,0.000127,2]
[419834122,1775406639325,-751.14,0.00012803,2]
[419834123,1775406639334,-155.72826666,0.00012816,2]
[419834124,1775406639343,-166.66,0.00012837,2]
[419834125,1775406639353,-595.25320795,0.00012841,2]
[419834126,1775406639363,-200.0,0.00012841,2]
[419834127,1775406639373,-695.39793187,0.00012841,2]
[419834128,1775406639382,-9211.34798985,0.00012841,2]
[419834129,1775406639392,-1377.42282659,0.00012841,2]
[419834130,1775406639401,-500.0,0.00012841,2]
[419834131,1775406639410,-500.0,0.00012841,2]
[419834132,1775406639420,-500.0,0.00012841,2]
[419834133,1775406639429,-500.0,0.00012841,2]
[419834134,1775406639439,-500.0,0.00012841,2]
[419834135,1775406639449,-500.0,0.00012841,2]
[419834136,1775406639458,-500.0,0.00012841,2]
[419834137,1775406639468,-1000.0,0.00012841,2]
[419834138,1775406639483,-500.0,0.00012841,2]
[419834139,1775406639492,-1000.0,0.00012841,2]
[419834140,1775406639502,-500.0,0.00012841,2]
[419834141,1775406639512,-1000.0,0.00012841,2]
[419834142,1775406639522,-500.0,0.00012841,2]
[419834143,1775406639532,-3000.0,0.00012841,2]
[419834144,1775406639542,-1000.0,0.00012841,2]
[419834145,1775406639553,-500.0,0.00012841,2]
[419834146,1775406639563,-3000.0,0.00012841,2]
[419834147,1775406639574,-1000.0,0.00012841,2]
[419834148,1775406639583,-3000.0,0.00012841,2]
[419834149,1775406639593,-1000.0,0.00012841,2]
[419834150,1775406639604,-500.0,0.00012841,2]
[419834151,1775406639614,-3000.0,0.00012841,2]
[419834152,1775406639624,-500.0,0.00012841,2]
[419834153,1775406639633,-1000.0,0.00012841,2]
[419834154,1775406639643,-3000.0,0.00012841,2]
[419834155,1775406639657,-1000.0,0.00012841,2]
[419834156,1775406639667,-201.93286099,0.00012841,2]
[419834157,1775406639677,-3000.0,0.00012841,2]
[419834158,1775406639687,-1000.0,0.00012841,2]
[419834159,1775406639699,-3000.0,0.00012841,2]
[419834160,1775406639709,-233.76893115,0.00012841,2]
[419834161,1775406639719,-3000.0,0.00012841,2]
[419834162,1775406639730,-3000.0,0.00012841,2]
[419834163,1775406639741,-3000.0,0.00012841,2]
[419834164,1775406639751,-3000.0,0.00012841,2]
[419834165,1775406639761,-3000.0,0.00012841,2]
[419834166,1775406639771,-743.50770149,0.00012841,2]
[419834167,1775406639781,-151.0,0.00012841,2]
[419834168,1775406639791,-174.61919141,0.00012841,2]
[419834169,1775406639801,-279.9045709,0.00012841,2]
[419834170,1775406639810,-329.2835348,0.00012841,2]
[419834171,1775406639820,-170.0,0.00012841,2]
[419834172,1775406639830,-170.0,0.00012841,2]
[419834173,1775406639840,-170.0,0.00012841,2]
[419834174,1775406639850,-170.0,0.00012841,2]
[419834175,1775406639860,-170.0,0.00012841,2]
[419834176,1775406639870,-170.0,0.00012841,2]
[419834177,1775406639881,-170.0,0.00012841,2]
[419834178,1775406639891,-170.0,0.00012841,2]
[419834179,1775406639901,-170.0,0.00012841,2]
[419834180,1775406639910,-170.0,0.00012841,2]
[419834181,1775406639920,-170.0,0.00012841,2]
[419834182,1775406639930,-170.0,0.00012841,2]
[419834183,1775406639940,-9552.16786547,0.00012896,2]
[419834184,1775406639950,-500.0,0.00012896,2]
[419834185,1775406639960,-151.0,0.00012896,2]
[419834186,1775406639971,-9905.5980765,0.00012951,2]
[419834187,1775406639980,-500.0,0.00012951,2]
[419834188,1775406639990,-151.0,0.00012951,2]
[419834189,1775406640000,-190.874,0.00013,2]
[419834190,1775406640010,-10272.10520533,0.00013006,2]
[419834191,1775406640020,-500.0,0.00013006,2]
[419834194,1775406640030,-151.0,0.00013006,2]
[419834196,1775406640040,-1152.0,0.00013014,2]
[419834199,1775406640050,-4609.0,0.00013014,2]
[419834200,1775406640059,-5927.84730335,0.00013061,2]
[419834201,1775406640069,-500.0,0.00013061,2]
[419834202,1775406640078,-151.0,0.00013061,2]
[419834203,1775406640088,-200.0,0.00013077,2]
[419834204,1775406640098,-751.14,0.00013077,2]
[419834205,1775406640108,-500.0,0.00013078,2]
[419834207,1775406640118,-503.0,0.00013111,2]
[419834209,1775406640128,-500.0,0.00013116,2]
[419834212,1775406640138,-151.0,0.00013116,2]
[419834213,1775406640148,-500.0,0.00013171,2]
[419834214,1775406640158,-151.0,0.00013171,2]
[419834215,1775406640170,-6869.8513345,0.00013199,2]
[419834216,1775406640180,-500.0,0.00013226,2]
[419834217,1775406640190,-151.0,0.00013226,2]
[419834218,1775406640200,-166.66,0.00013261,2]
[419834219,1775406640209,-500.0,0.00013281,2]
[419834220,1775406640219,-151.0,0.00013281,2]
[419834221,1775406640229,-155.72826666,0.0001333,2]
[419834222,1775406640239,-500.0,0.00013336,2]
[419834223,1775406640249,-151.0,0.00013336,2]
[419834224,1775406640259,-751.14,0.00013351,2]
[419834225,1775406640269,-200.0,0.00013389,2]
[419834226,1775406640279,-1428.38747117,0.00013389,2]
[419834227,1775406640289,-209.40437684,0.00013389,2]
[419834228,1775406640298,-771.01748645,0.00013389,2]
[419834229,1775406640308,-181.08010149,0.00013389,2]
[419834230,1775406640318,-290.26104003,0.00013389,2]
[419834231,1775406640327,-500.0,0.00013391,2]
[419834232,1775406640338,-151.0,0.00013391,2]
[419834233,1775406640348,-500.0,0.00013425,2]
[419834234,1775406640357,-500.0,0.00013446,2]
[419834235,1775406640367,-151.0,0.00013446,2]
[419834236,1775406640377,-1573.35837267,0.00013498,2]
[419834237,1775406640388,-200.0,0.00013625,2]
[419834238,1775406640397,-751.14,0.00013625,2]
[419834239,1775406640407,-166.66,0.00013684,2]
[419834240,1775406640417,-500.0,0.00013695,2]
[419834241,1775406640427,-1538.0,0.00013695,2]
[419834242,1775406640436,-588.99,0.00013698,2]
[419834243,1775406640446,-500.0,0.00013698,2]
[419834244,1775406640456,-469.24,0.00013698,2]
[419834245,1775406640467,-500.0,0.00013698,2]
[419834246,1775406640477,-500.0,0.00013698,2]
[419834247,1775406640487,-500.0,0.00013698,2]
[419834248,1775406640498,-500.0,0.00013698,2]
[419834249,1775406640509,-500.0,0.00013698,2]
[419834250,1775406640518,-500.0,0.00013698,2]
[419834251,1775406640528,-500.0,0.00013698,2]
[419834252,1775406640542,-500.0,0.00013698,2]
[419834253,1775406640552,-500.0,0.00013698,2]
[419834254,1775406640562,-172.08950636,0.00013698,2]
[419834255,1775406640572,-571.23,0.00013698,2]
[419834256,1775406640582,-571.23,0.00013698,2]
[419834257,1775406640592,-571.23,0.00013698,2]
[419834258,1775406640602,-571.23,0.00013698,2]
[419834259,1775406640612,-571.23,0.00013698,2]
[419834260,1775406640622,-571.23,0.00013698,2]
[419834261,1775406640631,-571.23,0.00013698,2]
[419834262,1775406640641,-571.23,0.00013698,2]
[419834263,1775406640651,-571.23,0.00013698,2]
[419834264,1775406640661,-571.23,0.00013698,2]
[419834265,1775406640671,-571.23,0.00013698,2]
[419834266,1775406640682,-571.23,0.00013698,2]
[419834267,1775406640692,-571.23,0.00013698,2]
[419834268,1775406640703,-571.23,0.00013698,2]
[419834269,1775406640714,-548.62,0.00013698,2]
[419834270,1775406640725,-548.62,0.00013698,2]
[419834271,1775406640735,-548.62,0.00013698,2]
[419834272,1775406640747,-548.62,0.00013698,2]
[419834273,1775406640757,-548.62,0.00013698,2]
[419834274,1775406640768,-548.62,0.00013698,2]
[419834275,1775406640779,-548.62,0.00013698,2]
[419834276,1775406640790,-548.62,0.00013698,2]
[419834277,1775406640800,-548.62,0.00013698,2]
[419834278,1775406640811,-548.62,0.00013698,2]
[419834279,1775406640822,-548.62,0.00013698,2]
[419834280,1775406640832,-548.62,0.00013698,2]
[419834281,1775406640842,-548.62,0.00013698,2]
[419834282,1775406640852,-548.62,0.00013698,2]
[419834283,1775406640862,-500.0,0.00013698,2]
[419834284,1775406640872,-500.0,0.00013698,2]
[419834285,1775406640882,-500.0,0.00013698,2]
[419834286,1775406640893,-500.0,0.00013698,2]
[419834287,1775406640903,-500.0,0.00013698,2]
[419834288,1775406640914,-500.0,0.00013698,2]
[419834289,1775406640926,-500.0,0.00013698,2]
[419834290,1775406640936,-500.0,0.00013698,2]
[419834291,1775406640947,-500.0,0.00013698,2]
[419834292,1775406640958,-500.0,0.00013698,2]
[419834293,1775406640968,-500.0,0.00013698,2]
[419834294,1775406640978,-500.0,0.00013698,2]
[419834295,1775406640989,-500.0,0.00013698,2]
[419834296,1775406640999,-500.0,0.00013698,2]
[419834297,1775406641008,-526.92,0.00013698,2]
[419834298,1775406641018,-526.92,0.00013698,2]
[419834300,1775406641028,-526.92,0.00013698,2]
[419834301,1775406641039,-526.92,0.00013698,2]
[419834302,1775406641048,-526.92,0.00013698,2]
[419834303,1775406641059,-526.92,0.00013698,2]
[419834304,1775406641069,-526.92,0.00013698,2]
[419834305,1775406641079,-526.92,0.00013698,2]
[419834306,1775406641092,-526.92,0.00013698,2]
[419834307,1775406641103,-526.92,0.00013698,2]
[419834308,1775406641113,-526.92,0.00013698,2]
[419834309,1775406641123,-526.92,0.00013698,2]
[419834310,1775406641132,-526.92,0.00013698,2]
[419834311,1775406641142,-526.92,0.00013698,2]
[419834312,1775406641152,-500.0,0.00013698,2]
[419834313,1775406641161,-500.0,0.00013698,2]
[419834314,1775406641171,-500.0,0.00013698,2]
[419834315,1775406641181,-500.0,0.00013698,2]
[419834316,1775406641190,-500.0,0.00013698,2]
[419834317,1775406641200,-500.0,0.00013698,2]
[419834318,1775406641209,-223.40397972,0.00013698,2]
[419834319,1775406641219,-500.0,0.00013698,2]
[419834320,1775406641228,-500.0,0.00013698,2]
[419834321,1775406641238,-500.0,0.00013698,2]
[419834322,1775406641248,-500.0,0.00013698,2]
[419834323,1775406641257,-500.0,0.00013698,2]
[419834324,1775406641268,-500.0,0.00013698,2]
[419834325,1775406641277,-500.0,0.00013698,2]
[419834326,1775406641287,-500.0,0.00013698,2]
[419834327,1775406641298,-500.0,0.00013698,2]
[419834328,1775406641308,-500.0,0.00013698,2]
[419834329,1775406641318,-500.0,0.00013698,2]
[419834330,1775406641328,-500.0,0.00013698,2]
[419834331,1775406641337,-500.0,0.00013698,2]
[419834332,1775406641347,-601.55745143,0.00013698,2]
[419834333,1775406641357,-500.0,0.00013698,2]
[419834334,1775406641367,-500.0,0.00013698,2]
[419834335,1775406641376,-500.0,0.00013698,2]
[419834336,1775406641386,-500.0,0.00013698,2]
[419834337,1775406641396,-500.0,0.00013698,2]
[419834338,1775406641406,-444.95,0.00013698,2]
[419834339,1775406641417,-500.0,0.00013698,2]
[419834340,1775406641427,-500.0,0.00013698,2]
[419834341,1775406641437,-500.0,0.00013698,2]
[419834342,1775406641447,-500.0,0.00013698,2]
[419834343,1775406641456,-500.0,0.00013698,2]
[419834344,1775406641466,-500.0,0.00013698,2]
[419834345,1775406641476,-500.0,0.00013698,2]
[419834346,1775406641486,-500.0,0.00013698,2]
[419834347,1775406641495,-500.0,0.00013698,2]
[419834348,1775406641505,-346.23278756,0.00013698,2]
[419834349,1775406641516,-500.0,0.00013698,2]
[419834350,1775406641527,-500.0,0.00013698,2]
[419834351,1775406641537,-500.0,0.00013698,2]
[419834352,1775406641546,-500.0,0.00013698,2]
[419834353,1775406641556,-500.0,0.00013698,2]
[419834354,1775406641566,-500.0,0.00013698,2]
[419834355,1775406641576,-500.0,0.00013698,2]
[419834356,1775406641586,-500.0,0.00013698,2]
[419834357,1775406641596,-500.0,0.00013698,2]
[419834358,1775406641606,-500.0,0.00013698,2]
[419834359,1775406641617,-500.0,0.00013698,2]
[419834360,1775406641628,-277.80362492,0.00013698,2]
[419834361,1775406641638,-500.0,0.00013698,2]
[419834362,1775406641648,-500.0,0.00013698,2]
[419834363,1775406641658,-500.0,0.00013698,2]
[419834364,1775406641668,-500.0,0.00013698,2]
[419834365,1775406641678,-500.0,0.00013698,2]
[419834366,1775406641688,-500.0,0.00013698,2]
[419834367,1775406641698,-500.0,0.00013698,2]
[419834368,1775406641709,-500.0,0.00013698,2]
[419834369,1775406641719,-500.0,0.00013698,2]
[419834370,1775406641729,-500.0,0.00013698,2]
[419834371,1775406641738,-500.0,0.00013698,2]
[419834372,1775406641748,-500.0,0.00013698,2]
[419834373,1775406641759,-500.0,0.00013698,2]
[419834374,1775406641769,-500.0,0.00013698,2]
[419834375,1775406641778,-500.0,0.00013698,2]
[419834376,1775406641788,-500.0,0.00013698,2]
[419834377,1775406641798,-500.0,0.00013698,2]
[419834378,1775406641808,-500.0,0.00013698,2]
[419834379,1775406641818,-500.0,0.00013698,2]
[419834380,1775406641828,-500.0,0.00013698,2]
[419834381,1775406641837,-500.0,0.00013698,2]
[419834382,1775406641847,-1353.7,0.00013698,2]
[419834383,1775406641857,-1353.7,0.00013698,2]
[419834384,1775406641868,-1353.7,0.00013698,2]
[419834385,1775406641877,-1353.7,0.00013698,2]
[419834386,1775406641887,-1353.7,0.00013698,2]
[419834387,1775406641897,-1353.7,0.00013698,2]
[419834388,1775406641907,-1353.7,0.00013698,2]
[419834389,1775406641916,-1353.7,0.00013698,2]
[419834390,1775406641926,-1353.7,0.00013698,2]
[419834391,1775406641935,-1353.7,0.00013698,2]
[419834392,1775406641945,-1353.7,0.00013698,2]
[419834393,1775406641955,-1353.7,0.00013698,2]
[419834394,1775406641964,-1353.7,0.00013698,2]
[419834395,1775406641974,-1353.7,0.00013698,2]
[419834396,1775406641984,-500.0,0.00013698,2]
[419834397,1775406641994,-500.0,0.00013698,2]
[419834398,1775406642004,-500.0,0.00013698,2]
[419834399,1775406642014,-527.89052605,0.00013698,2]
[419834400,1775406642023,-500.0,0.00013698,2]
[419834401,1775406642033,-500.0,0.00013698,2]
[419834402,1775406642042,-500.0,0.00013698,2]
[419834403,1775406642052,-500.0,0.00013698,2]
[419834404,1775406642062,-500.0,0.00013698,2]
[419834405,1775406642075,-500.0,0.00013698,2]
[419834406,1775406642085,-500.0,0.00013698,2]
[419834407,1775406642095,-500.0,0.00013698,2]
[419834408,1775406642105,-500.0,0.00013698,2]
[419834409,1775406642115,-500.0,0.00013698,2]
[419834410,1775406642124,-500.0,0.00013698,2]
[419834411,1775406642134,-500.0,0.00013698,2]
[419834412,1775406642143,-500.0,0.00013698,2]
[419834413,1775406642153,-500.0,0.00013698,2]
[419834414,1775406642163,-500.0,0.00013698,2]
[419834415,1775406642172,-500.0,0.00013698,2]
[419834416,1775406642181,-500.0,0.00013698,2]
[419834417,1775406642191,-500.0,0.00013698,2]
[419834418,1775406642200,-500.0,0.00013698,2]
[419834419,1775406642211,-500.0,0.00013698,2]
[419834420,1775406642220,-500.0,0.00013698,2]
[419834421,1775406642229,-500.0,0.00013698,2]
[419834422,1775406642239,-500.0,0.00013698,2]
[419834423,1775406642248,-331.74,0.00013698,2]
[419834424,1775406642258,-150.0,0.00013699,2]
[419834425,1775406642268,-150.0,0.00013699,2]
[419834426,1775406642278,-150.0,0.00013699,2]
[419834427,1775406642287,-150.0,0.00013699,2]
[419834428,1775406642297,-1542.09,0.00013699,2]
[419834429,1775406642307,-200.0,0.00013699,2]
[419834430,1775406642316,-162.49,0.000137,2]
[419834431,1775406642326,-827.72,0.000137,2]
[419834432,1775406642335,-827.72,0.000137,2]
[419834433,1775406642345,-827.72,0.000137,2]
[419834434,1775406642355,-6869.8513345,0.00013739,2]
[419834435,1775406642364,-155.72826666,0.00013844,2]
[419834436,1775406642374,-1573.35837261,0.00013898,2]
[419834437,1775406642384,-751.18971614,0.00013899,2]
[419834438,1775406642393,-571.23,0.00013925,2]
[419834439,1775406642403,-304.0702,0.00013937,2]
[419834440,1775406642413,-1481.23780761,0.00013937,2]
[419834441,1775406642422,-339.62894544,0.00013937,2]
[419834442,1775406642432,-799.54513345,0.00013937,2]
[419834443,1775406642441,-187.78006525,0.00013937,2]
[419834444,1775406642451,-301.00069851,0.00013937,2]
[419834445,1775406642461,-500.0,0.00013969,2]
[419834446,1775406642470,-1538.0,0.00013969,2]
[419834447,1775406642480,-150.0,0.00013973,2]
[419834448,1775406642490,-150.0,0.00013973,2]
[419834449,1775406642499,-11422.25541393,0.00014006,2]
[419834450,1775406642509,-2090.88,0.000141,2]
[419834451,1775406642519,-1490.25,0.000141,2]
[419834452,1775406642528,-1733.89,0.000141,2]
[419834453,1775406642538,-166.66,0.00014108,2]
[419834454,1775406642548,-159.38,0.00014166,2]
[419834455,1775406642558,-200.0,0.00014173,2]
[419834456,1775406642567,-503.0,0.00014226,2]
[419834457,1775406642577,-500.0,0.00014243,2]
[419834459,1775406642587,-1538.0,0.00014243,2]
[419834461,1775406642596,-571.23,0.00014246,2]
[419834463,1775406642606,-150.0,0.00014247,2]
[419834464,1775406642616,-150.0,0.00014247,2]
[419834466,1775406642626,-150.0,0.00014247,2]
[419834467,1775406642635,-827.72,0.00014269,2]
[419834468,1775406642645,-6869.8513345,0.0001428,2]
[419834469,1775406642655,-1573.35837261,0.00014299,2]
[419834470,1775406642665,-215.3151,0.000143,2]
[419834471,1775406642675,-1613.0,0.00014316,2]
[419834472,1775406642685,-6453.0,0.00014316,2]
[419834473,1775406642694,-155.72826666,0.00014358,2]
[419834474,1775406642704,-150.14541725,0.000144,2]
[419834475,1775406642715,-150.0,0.000144,2]
[419834476,1775406642725,-150.0,0.000144,2]
[419834477,1775406642735,-150.0,0.000144,2]
[419834478,1775406642744,-150.17540857,0.000144,2]
[419834479,1775406642755,-150.0,0.000144,2]
[419834480,1775406642765,-150.0,0.000144,2]
[419834481,1775406642776,-150.0,0.000144,2]
[419834482,1775406642787,-151.01430456,0.000144,2]
[419834483,1775406642798,-150.60277618,0.000144,2]
[419834484,1775406642807,-287.38140471,0.000144,2]
[419834485,1775406642817,-150.0,0.000144,2]
[419834486,1775406642827,-150.0,0.000144,2]
[419834487,1775406642837,-548.62,0.00014427,2]
[419834488,1775406642847,-500.0,0.00014427,2]
[419834489,1775406642858,-526.92,0.00014427,2]
[419834490,1775406642868,-500.0,0.00014427,2]
[419834491,1775406642878,-500.0,0.00014427,2]
[419834492,1775406642888,-1353.7,0.00014427,2]
[419834493,1775406642898,-500.0,0.00014427,2]
[419834494,1775406642908,-1536.04360649,0.00014485,2]
[419834495,1775406642918,-829.12830338,0.00014485,2]
[419834496,1775406642928,-194.72792766,0.00014485,2]
[419834497,1775406642938,-284.74539875,0.00014485,2]
[419834498,1775406642950,-150.0,0.00014491,4]
[419834499,1775406642959,-161.4625216,0.00014511,4]
[419834500,1775406642969,-500.0,0.00014517,2]
[419834501,1775406642980,-1538.0,0.00014517,2]
[419834502,1775406642989,-166.66,0.00014532,2]
[419834503,1775406643000,-150.0,0.00014533,2]
[419834504,1775406643010,-150.0,0.00014578,2]
[419834505,1775406643019,-150.0,0.00014629,2]
[419834506,1775406643028,-150.0,0.00014629,2]
[419834507,1775406643039,-150.0,0.00014629,2]
[419834508,1775406643049,-150.0,0.00014667,2]
[419834509,1775406643059,-1573.35837261,0.00014699,2]
[419834510,1775406643068,-500.0,0.0001472,2]
[419834511,1775406643079,-200.0,0.00014721,2]
[419834512,1775406643088,-1191.46,0.00014721,2]
[419834513,1775406643098,-486.65,0.00014721,2]
[419834514,1775406643108,-200.0,0.00014721,2]
[419834515,1775406643119,-150.0,0.00014756,2]
[419834516,1775406643129,-477.12,0.0001476,2]
[419834517,1775406643139,-500.0,0.00014791,2]
[419834518,1775406643150,-1538.0,0.00014791,2]
[419834519,1775406643160,-150.0,0.000148,2]
[419834520,1775406643171,-6869.8513345,0.0001482,2]
[419834521,1775406643180,-150.0,0.00014857,2]
[419834522,1775406643191,-150.0,0.00014857,2]
[419834523,1775406643201,-150.0,0.00014857,2]
[419834524,1775406643211,-2648.0,0.00014866,5]
[419834525,1775406643516,-2123.0,0.00014866,5]
[419834526,1775406643527,-155.72826666,0.00014872,2]
[419834527,1775406643537,-827.72,0.00014874,2]
[419834528,1775406643547,-8422.99193755,0.00014884,2]
[419834529,1775406643558,-871.95012592,0.00014884,2]
[419834530,1775406643567,-571.23,0.00014897,2]
[419834531,1775406643577,-150.0,0.00014933,2]
[419834532,1775406643587,-150.0,0.00014933,2]
[419834533,1775406643598,-150.0,0.00014933,2]
[419834534,1775406643607,-150.0,0.00014933,2]
[419834535,1775406643617,-166.66,0.00014956,2]
[419834536,1775406643628,-3004.07750266,0.00015,2]
[419834537,1775406643639,-500.0,0.00015,2]
[419834538,1775406643650,-500.0,0.00015,2]
[419834539,1775406643660,-500.0,0.00015,2]
[419834540,1775406643670,-500.0,0.00015,2]
[419834541,1775406643681,-500.0,0.00015,2]
[419834542,1775406643691,-500.0,0.00015,2]
[419834543,1775406643701,-500.0,0.00015,2]
[419834544,1775406643711,-500.0,0.00015,2]
[419834545,1775406643721,-500.0,0.00015,2]
[419834546,1775406643731,-500.0,0.00015,2]
[419834547,1775406643741,-500.0,0.00015,2]
[419834548,1775406643751,-500.0,0.00015,2]
[419834549,1775406643761,-199.41,0.00015,2]
[419834550,1775406643771,-500.0,0.00015,2]
[419834551,1775406643782,-500.0,0.00015,2]
[419834552,1775406643792,-468.12,0.00015,2]
[419834553,1775406643802,-500.0,0.00015015,2]
[419834554,1775406643812,-2000.0,0.00015015,2]
[419834555,1775406643821,-500.0,0.00015023,2]
[419834556,1775406643831,-500.0,0.00015023,2]
[419834557,1775406643840,-500.0,0.00015023,2]
[419834558,1775406643851,-500.0,0.00015023,2]
[419834559,1775406643860,-1592.87721993,0.00015033,2]
[419834560,1775406643871,-859.80605061,0.00015033,2]
[419834561,1775406643881,-201.93286099,0.00015033,2]
[419834562,1775406643891,-10000.0,0.00015041,2]
[419834563,1775406643901,-500.0,0.00015065,2]
[419834564,1775406643911,-1538.0,0.00015065,2]
[419834565,1775406643921,-150.0,0.00015067,2]
[419834566,1775406643931,-800.96674089,0.00015068,2]
[419834567,1775406643940,-150.0,0.00015086,2]
[419834568,1775406643950,-150.0,0.00015086,2]
[419834569,1775406643960,-150.0,0.00015086,2]
[419834570,1775406643970,-1573.35837261,0.00015099,2]
[419834571,1775406643980,-150.0,0.00015111,2]
[419834572,1775406643990,-5173.0,0.00015126,2]
[419834573,1775406644000,-500.0,0.00015133,2]
[419834574,1775406644010,-500.0,0.00015133,2]
[419834575,1775406644019,-500.0,0.00015133,2]
[419834576,1775406644029,-500.0,0.00015133,2]
[419834577,1775406644039,-500.0,0.00015133,2]
[419834578,1775406644049,-500.0,0.00015133,2]
[419834579,1775406644059,-548.62,0.00015141,2]
[419834580,1775406644069,-548.62,0.00015141,2]
[419834581,1775406644079,-548.62,0.00015141,2]
[419834582,1775406644090,-548.62,0.00015141,2]
[419834583,1775406644099,-548.62,0.00015141,2]
[419834584,1775406644109,-548.62,0.00015141,2]
[419834585,1775406644118,-548.62,0.00015141,2]
[419834586,1775406644128,-548.62,0.00015141,2]
[419834587,1775406644137,-548.83214758,0.00015141,2]
[419834588,1775406644146,-500.0,0.00015141,2]
[419834589,1775406644156,-500.0,0.00015141,2]
[419834590,1775406644166,-500.0,0.00015141,2]
[419834591,1775406644175,-500.0,0.00015141,2]
[419834592,1775406644185,-500.0,0.00015141,2]
[419834593,1775406644194,-500.0,0.00015141,2]
[419834594,1775406644203,-500.0,0.00015141,2]
[419834595,1775406644213,-500.0,0.00015141,2]
[419834596,1775406644222,-331.40918003,0.00015141,2]
[419834597,1775406644232,-526.92,0.00015141,2]
[419834598,1775406644241,-526.92,0.00015141,2]
[419834599,1775406644251,-526.92,0.00015141,2]
[419834600,1775406644260,-526.92,0.00015141,2]
[419834601,1775406644269,-526.92,0.00015141,2]
[419834602,1775406644279,-526.92,0.00015141,2]
[419834603,1775406644289,-526.92,0.00015141,2]
[419834604,1775406644299,-526.92,0.00015141,2]
[419834605,1775406644308,-526.92978926,0.00015141,2]
[419834606,1775406644317,-500.0,0.00015141,2]
[419834607,1775406644327,-307.6298975,0.00015141,2]
[419834608,1775406644336,-500.0,0.00015141,2]
[419834609,1775406644346,-500.0,0.00015141,2]
[419834610,1775406644355,-500.0,0.00015141,2]
[419834611,1775406644365,-500.0,0.00015141,2]
[419834612,1775406644375,-500.0,0.00015141,2]
[419834613,1775406644385,-187.00513851,0.00015141,2]
[419834614,1775406644394,-1353.7,0.00015141,2]
[419834615,1775406644404,-1353.7,0.00015141,2]
[419834616,1775406644413,-1353.7,0.00015141,2]
[419834617,1775406644423,-1353.7,0.00015141,2]
[419834618,1775406644432,-1353.7,0.00015141,2]
[419834619,1775406644441,-1353.7,0.00015141,2]
[419834620,1775406644450,-1353.7,0.00015141,2]
[419834621,1775406644460,-1353.7,0.00015141,2]
[419834622,1775406644469,-1353.91849701,0.00015141,2]
[419834623,1775406644478,-500.0,0.00015141,2]
[419834624,1775406644488,-500.0,0.00015141,2]